bitfinex-derivatives/quotes_SOLF0:USTF0_20250613
["timestamp","ask_amount","ask_price","bid_price","bid_amount"]
[1749846468694,5.86262408,145.99,145.95,35.54]
[1749846468991,0.04401968,145.99,145.97,0.04582801]
[1749846469690,0.04401968,145.99,145.98,6.847]
[1749846470480,0.04401968,145.99,145.98,18.62375951]
[1749846470686,6.8444,146.04,146.01,6.8452]
[1749846470883,5.87183622,146.03,145.99,35.54]
[1749846471087,6.8442,146.04,146.01,6.8456]
[1749846471585,6.8448,146.03,146.01,0.04984044]
[1749846472391,6.8448,146.03,146.01,6.89534044]
[1749846474891,6.8448,146.03,146.01,0.04984044]
[1749846476894,12.71902891,146.02,146.01,0.04984044]
[1749846478190,5.87392891,146.02,145.96,11.77675951]
[1749846478493,5.87392891,146.01,145.96,11.77675951]
[1749846478693,18.1696233,146.04,145.97,6.8471]
[1749846478894,5.87437353,146.03,145.97,6.8471]
[1749846479204,0.0440252,146.01,145.99,0.04623807]
[1749846479393,12.72087353,146.0,145.99,0.04623807]
[1749846483600,5.87437353,146.0,145.99,0.04623807]
[1749846483798,0.0440252,146.01,145.99,11.82339842]
[1749846484102,0.0440252,146.01,146.0,6.8461]
[1749846485201,6.39286379,146.08,145.99,11.82339842]
[1749846485396,5.86584248,146.07,146.03,11.77716035]
[1749846485595,5.86584248,146.06,146.03,11.77716035]
[1749846485795,6.8426,146.08,146.05,6.8435]
[1749846485991,5.86381924,146.07,146.05,11.77716035]
[1749846486197,0.05089114,146.07,146.05,11.82133997]
[1749846486396,17.71306379,146.12,146.09,6.8417]
[1749846486597,17.71306379,146.12,146.05,11.82133997]
[1749846486598,5.87270777,146.11,146.07,47.77716035]
[1749846486799,2.2045,146.12,146.07,47.77716035]
[1749846486800,2.2045,146.12,146.08,36.0]
[1749846487002,2.2045,146.12,146.09,6.8418]
[1749846487303,2.25519863,146.12,146.09,6.89439666]
[1749846487793,9.09599863,146.12,146.09,0.05259666]
[1749846487994,2.25519863,146.12,146.09,0.05259666]
[1749846488207,5.86357139,146.11,146.09,0.05259666]
[1749846488399,2.25519863,146.12,146.09,0.05259666]
[1749846488599,5.86097793,146.11,146.09,0.05259666]
[1749846488800,6.8409,146.11,146.09,0.05259666]
[1749846490212,6.8414,146.1,146.09,0.05259666]
[1749846490709,5.85674727,146.1,146.04,36.0]
[1749846490916,6.8428,146.07,146.04,36.0]
[1749846491102,6.8428,146.07,146.04,42.8439]
[1749846491809,6.88609787,146.07,146.04,42.88841858]
[1749846492409,0.04329787,146.07,146.04,0.04451858]
[1749846492914,6.8437,146.05,146.04,0.04451858]
[1749846494404,6.88639787,146.07,146.04,0.04451858]
[1749846494609,0.04329787,146.07,146.04,0.04451858]
[1749846495109,0.04329787,146.07,146.05,6.8434]
[1749846496205,0.04329787,146.07,146.04,0.04451858]
[1749846497005,6.88639787,146.07,146.04,6.88871858]
[1749846497209,0.04329787,146.07,146.04,0.04451858]
[1749846497709,6.8435,146.06,146.04,0.04451858]
[1749846499413,6.88629787,146.07,146.04,6.88871858]
[1749846500201,0.04329787,146.07,146.06,6.8433]
[1749846500403,0.04329787,146.07,146.06,42.8433]
[1749846502612,0.04329787,146.07,146.06,36.0]
[1749846502814,0.04329787,146.07,146.04,0.04451858]
[1749846503510,6.8436,146.06,146.04,0.04451858]
[1749846504716,6.8437,146.05,146.04,0.04451858]
[1749846505919,17.62698553,146.05,146.0,36.0]
[1749846506119,11.75784818,146.05,146.0,36.0]
[1749846506617,4.5403,146.06,146.0,36.0]
[1749846506822,0.05263283,146.04,146.02,0.04761883]
[1749846507019,0.05263283,146.04,146.03,6.8447]
[1749846507315,0.05263283,146.04,146.02,0.04761883]
[1749846507716,0.05263283,146.04,146.02,6.89251883]
[1749846508020,0.05263283,146.04,146.02,0.04761883]
[1749846508721,0.05263283,146.04,146.02,36.04761883]
[1749846509308,0.05263283,146.04,146.02,42.89231883]
[1749846510817,0.05263283,146.04,146.03,6.8447]
[1749846516526,0.05263283,146.04,146.03,18.60254818]
[1749846517426,6.8415,146.1,146.07,6.8424]
[1749846518524,6.88692175,146.1,146.07,6.89140954]
[1749846518725,6.88692175,146.1,146.08,6.8422]
[1749846519225,0.04542175,146.1,146.09,6.8419]
[1749846521925,0.04542175,146.1,146.08,6.8421]
[1749846522322,0.04542175,146.1,146.07,0.04900954]
[1749846522523,0.04542175,146.1,146.09,6.8419]
[1749846523621,0.04542175,146.1,146.09,18.59974818]
[1749846529334,0.04542175,146.1,146.09,13.69606594]
[1749846532635,0.04542175,146.1,146.08,6.8421]
[1749846533136,0.04542175,146.1,146.09,6.8419]
[1749846537039,0.04542175,146.1,146.07,6.90317548]
[1749846537228,0.04542175,146.1,146.07,0.04900954]
[1749846537433,4.76822175,146.1,146.07,0.04900954]
[1749846537732,4.76822175,146.1,146.07,6.89150954]
[1749846538128,11.60982175,146.1,146.07,6.89150954]
[1749846540038,11.60982175,146.1,146.08,6.8423]
[1749846540444,11.60982175,146.1,146.07,6.89160954]
[1749846540641,6.8419,146.09,146.07,6.89160954]
[1749846540840,4.76822175,146.1,146.07,6.89160954]
[1749846541041,11.60992175,146.1,146.07,6.89160954]
[1749846541243,4.76822175,146.1,146.07,0.04900954]
[1749846541439,0.04542175,146.1,146.07,6.90317548]
[1749846542049,0.04542175,146.1,146.08,6.842]
[1749846544845,0.04542175,146.1,146.07,13.74577548]
[1749846545242,6.88702175,146.1,146.07,6.90317548]
[1749846545649,6.8422,146.09,146.07,0.04900954]
[1749846547655,6.8422,146.09,146.07,6.89170954]
[1749846549252,6.88702175,146.1,146.08,6.8422]
[1749846549451,6.88702175,146.1,146.07,0.04900954]
[1749846549752,0.04542175,146.1,146.08,6.842]
[1749846551262,0.04542175,146.1,146.07,0.04900954]
[1749846551645,6.8423,146.09,146.07,0.04900954]
[1749846551850,0.04542175,146.1,146.07,0.04900954]
[1749846552250,6.8422,146.09,146.07,0.04900954]
[1749846552554,0.04542175,146.1,146.07,0.04900954]
[1749846552958,6.8421,146.09,146.07,0.04900954]
[1749846553549,0.04542175,146.1,146.07,0.04900954]
[1749846553753,0.04542175,146.1,146.07,6.90317548]
[1749846554057,0.04542175,146.1,146.09,6.8418]
[1749846556053,0.04542175,146.1,146.08,6.8421]
[1749846556752,0.04542175,146.1,146.07,0.04900954]
[1749846557653,12.71733847,146.09,146.07,0.04900954]
[1749846557857,6.8421,146.09,146.07,0.04900954]
[1749846559659,6.8421,146.09,146.07,6.89160954]
[1749846559958,6.8421,146.09,146.07,0.04900954]
[1749846560161,6.88702175,146.1,146.07,0.04900954]
[1749846560364,6.88702175,146.1,146.07,6.89150954]
[1749846560567,5.88002069,146.09,146.07,6.89150954]
[1749846560860,0.04542175,146.1,146.07,6.89150954]
[1749846561061,5.8800252,146.09,146.07,6.89150954]
[1749846561361,0.04542175,146.1,146.07,6.89150954]
[1749846561555,5.88192887,146.09,146.07,6.89150954]
[1749846561756,6.842,146.09,146.07,6.89150954]
[1749846563563,0.04542175,146.1,146.07,6.90317548]
[1749846564151,0.04542175,146.1,146.09,6.8419]
[1749846564551,0.04542175,146.1,146.09,13.69606594]
[1749846575765,8.7045906,146.18,146.09,6.85416594]
[1749846575965,8.10815362,146.17,146.11,6.85416594]
[1749846576164,6.8393,146.15,146.11,42.37416594]
[1749846576364,5.89735362,146.14,146.12,6.8402]
[1749846576569,6.8393,146.15,146.12,6.8402]
[1749846576767,5.89693646,146.14,146.12,6.8917443]
[1749846576963,6.89189617,146.15,146.12,6.8917443]
[1749846577165,5.89696548,146.14,146.12,6.8917443]
[1749846577365,6.89189617,146.15,146.12,6.8917443]
[1749846577566,5.89660411,146.14,146.12,6.8917443]
[1749846577766,6.89189617,146.15,146.12,6.8917443]
[1749846577966,5.89657509,146.14,146.12,6.8917443]
[1749846578167,6.89189617,146.15,146.12,6.8917443]
[1749846578372,5.89657509,146.14,146.12,6.8917443]
[1749846578563,6.89189617,146.15,146.12,6.8917443]
[1749846578765,5.89622953,146.14,146.13,6.8397]
[1749846579071,0.05259617,146.15,146.13,6.8397]
[1749846579662,6.89169617,146.15,146.13,6.8397]
[1749846580271,6.90676211,146.15,146.12,0.0515443]
[1749846580573,5.89582667,146.14,146.08,35.52]
[1749846580866,5.89582667,146.13,146.08,35.52]
[1749846581071,5.89582667,146.12,146.08,35.52]
[1749846581274,13.22305654,146.15,146.08,35.52]
[1749846581474,6.8408,146.12,146.1,0.05150692]
[1749846582166,0.04892168,146.13,146.1,0.05150692]
[1749846582167,6.8409,146.11,146.1,0.05150692]
[1749846582372,12.73765037,146.11,146.1,0.05150692]
[1749846585577,6.8409,146.11,146.1,0.05150692]
[1749846585775,12.73828373,146.11,146.1,0.05150692]
[1749846586775,5.89738373,146.11,146.1,0.05150692]
[1749846588674,12.73828373,146.11,146.1,0.05150692]
[1749846592581,5.89738373,146.11,146.1,0.05150692]
[1749846593771,12.73828373,146.11,146.1,0.05150692]
[1749846593976,5.89738373,146.11,146.1,0.05150692]
[1749846594281,5.89738373,146.11,146.1,13.74707286]
[1749846594579,0.04892168,146.13,146.1,0.05150692]
[1749846594780,0.04892168,146.13,146.12,6.8404]
[1749846595083,0.04892168,146.13,146.12,42.3804]
[1749846595379,0.04892168,146.13,146.12,35.54]
[1749846595578,6.8407,146.12,146.1,0.05150692]
[1749846595781,0.04892168,146.13,146.1,0.05150692]
[1749846596085,5.89505377,146.12,146.1,0.05150692]
[1749846596285,6.8408,146.12,146.1,0.05150692]
[1749846596679,5.90162211,146.11,146.1,0.05150692]
[1749846597889,6.8408,146.12,146.1,6.89290692]
[1749846598580,6.8408,146.12,146.1,0.05150692]
[1749846600387,0.04892168,146.13,146.1,0.05150692]
[1749846600785,12.7433591,146.12,146.1,0.05150692]
[1749846600991,6.8407,146.12,146.1,0.05150692]
[1749846601188,6.88902168,146.13,146.1,0.05150692]
[1749846601691,5.90254481,146.12,146.1,0.05150692]
[1749846601874,6.88902168,146.13,146.1,6.89270692]
[1749846602077,0.04892168,146.13,146.1,0.05150692]
[1749846602281,5.89666076,146.12,146.1,0.05150692]
[1749846602481,0.04892168,146.13,146.11,6.8406]
[1749846602682,5.89719474,146.12,146.11,6.8406]
[1749846603096,5.89719474,146.12,146.1,6.89270692]
[1749846603288,6.88892168,146.13,146.1,6.89270692]
[1749846603487,5.89831609,146.12,146.1,6.89270692]
[1749846603792,6.88892168,146.13,146.1,6.89270692]
[1749846604093,5.89859035,146.12,146.1,6.89270692]
[1749846604295,6.88892168,146.13,146.11,6.8408]
[1749846604495,5.8991791,146.12,146.11,6.8408]
[1749846605691,5.8991791,146.12,146.1,6.89280692]
[1749846605890,6.88892168,146.13,146.1,6.89280692]
[1749846606090,5.90039897,146.12,146.1,6.89280692]
[1749846606296,6.88892168,146.13,146.1,6.89280692]
[1749846608690,5.90605323,146.12,146.1,6.89280692]
[1749846608886,6.88892168,146.13,146.1,6.89280692]
[1749846609086,5.90623775,146.12,146.1,6.89280692]
[1749846609296,6.8405,146.12,146.1,0.05150692]
[1749846609488,5.90628587,146.11,146.1,0.05150692]
[1749846610101,12.76045181,146.11,146.06,35.5]
[1749846610301,5.90628587,146.1,146.06,35.5]
[1749846610502,9.0282,146.12,146.07,6.85416594]
[1749846610700,5.90663439,146.11,146.07,6.85416594]
[1749846610901,9.0282,146.12,146.09,6.8416]
[1749846611101,5.90654051,146.11,146.09,6.89147817]
[1749846611401,9.07580293,146.12,146.09,6.89147817]
[1749846611601,9.07580293,146.12,146.1,6.8414]
[1749846611602,5.90622608,146.11,146.1,6.8414]
[1749846611999,12.74712608,146.11,146.09,0.04987817]
[1749846612194,6.8409,146.11,146.09,0.04987817]
[1749846612802,6.8409,146.11,146.09,6.89157817]
[1749846613799,2.23530293,146.12,146.09,0.04987817]
[1749846614000,5.90672423,146.11,146.06,35.5]
[1749846614204,5.90672423,146.1,146.06,35.5]
[1749846614393,12.74882423,146.09,146.06,42.343]
[1749846614599,6.8421,146.09,146.06,42.343]
[1749846615001,6.8421,146.09,146.07,6.8427]
[1749846615002,6.88535908,146.09,146.07,6.8427]
[1749846616611,0.04325908,146.09,146.07,6.8427]
[1749846617007,0.04325908,146.09,146.08,6.8423]
[1749846617615,0.04325908,146.09,146.06,35.55032503]
[1749846618616,0.04325908,146.09,146.07,6.85416594]
[1749846618814,0.04325908,146.09,146.08,6.8423]
[1749846619912,0.04325908,146.09,146.08,13.69717817]
[1749846624217,2.2658,146.16,146.13,6.8398]
[1749846624518,5.89767783,146.15,146.13,6.8398]
[1749846624718,5.89767783,146.14,146.13,6.8398]
[1749846625819,0.04520426,146.15,146.12,6.88596719]
[1749846626014,5.89616468,146.14,146.12,0.04586719]
[1749846626320,5.89682341,146.13,146.12,0.04586719]
[1749846626714,12.73682341,146.13,146.12,0.04586719]
[1749846628315,6.8406,146.12,146.1,35.5]
[1749846628518,5.89682341,146.11,146.1,35.5]
[1749846629821,5.89682341,146.11,146.1,42.3414]
[1749846630324,5.90400878,146.11,146.1,35.5]
[1749846631521,5.90400878,146.11,146.09,6.89035182]
[1749846631822,6.89174839,146.12,146.09,6.89035182]
[1749846632017,12.73914605,146.11,146.09,6.89035182]
[1749846632222,0.05094839,146.12,146.09,0.04865182]
[1749846632425,5.89836934,146.11,146.09,0.04865182]
[1749846632624,6.8411,146.11,146.09,0.04865182]
[1749846633421,6.89154839,146.12,146.09,0.04865182]
[1749846633618,5.89848627,146.11,146.09,0.04865182]
[1749846633820,0.05094839,146.12,146.09,0.04865182]
[1749846634027,12.73963234,146.11,146.09,0.04865182]
[1749846634224,6.841,146.11,146.09,0.04865182]
[1749846635527,5.89879344,146.1,146.09,0.04865182]
[1749846636717,12.75533843,146.1,146.02,394.08]
[1749846636917,6.85654499,146.08,146.02,429.54]
[1749846637123,5.89879344,146.07,146.02,429.54]
[1749846637322,5.89879344,146.06,146.02,429.54]
[1749846637621,6.85654499,146.08,146.02,429.54]
[1749846637827,0.04405662,146.06,146.04,0.04727264]
[1749846638027,12.73770258,146.05,146.04,0.04727264]
[1749846640723,6.8458,146.01,145.99,35.46]
[1749846641033,9.13774499,146.04,145.99,35.46]
[1749846641227,12.72936826,146.03,146.0,6.846]
[1749846641422,6.8449,146.03,146.0,6.846]
[1749846641829,6.8454,146.02,146.0,0.04674797]
[1749846642131,0.04886307,146.03,146.0,0.04674797]
[1749846642433,6.8456,146.01,146.0,0.04674797]
[1749846642932,2.3634,146.01,145.96,35.48]
[1749846643319,6.8468,145.99,145.96,42.3277]
[1749846643728,2.3634,146.01,145.96,35.48]
[1749846643928,0.05070107,145.99,145.96,35.50969224]
[1749846644424,0.05070107,145.99,145.97,6.85654499]
[1749846644626,0.05070107,145.99,145.98,6.847]
[1749846645137,6.85654499,146.06,145.97,6.85654499]
[1749846645325,6.85654499,146.06,145.98,6.85654499]
[1749846645631,5.84540835,146.05,145.98,6.85654499]
[1749846645933,6.8454,146.02,145.99,6.8465]
[1749846646134,0.04837215,146.03,146.0,0.04931143]
[1749846646336,6.8456,146.01,146.0,0.04931143]
[1749846646837,6.8469,145.99,145.96,42.3279]
[1749846647035,6.85654499,146.0,145.96,35.48]
[1749846647337,6.85654499,146.0,145.93,35.48]
[1749846647835,6.8475,145.97,145.95,0.03108188]
[1749846648039,6.9090329,145.98,145.95,0.03108188]
[1749846648236,6.8479,145.96,145.95,0.03108188]
[1749846648433,6.9090329,145.98,145.95,0.03108188]
[1749846649737,6.8478,145.97,145.95,0.03108188]
[1749846650242,6.8479,145.96,145.95,0.03108188]
[1749846650446,13.70444499,145.96,145.95,0.03108188]
[1749846652336,6.85654499,145.96,145.9,42.3506]
[1749846652739,6.8496,145.93,145.9,42.3506]
[1749846652936,6.8496,145.93,145.9,35.5]
[1749846653144,6.8496,145.93,145.91,6.8503]
[1749846653342,6.89506699,145.93,145.9,35.5]
[1749846653941,0.04546699,145.93,145.9,35.5]
[1749846654641,0.04546699,145.93,145.87,35.5]
[1749846655142,0.04546699,145.93,145.9,6.87686785]
[1749846655437,0.04546699,145.93,145.88,6.87686785]
[1749846655438,0.04546699,145.93,145.91,42.37686785]
[1749846655644,0.04546699,145.93,145.92,6.8498]
[1749846655840,0.04546699,145.93,145.91,35.5]
[1749846656242,0.04546699,145.93,145.91,42.35]
[1749846657136,6.89486699,145.93,145.91,35.5]
[1749846657738,0.04546699,145.93,145.91,42.3502]
[1749846658437,0.04546699,145.93,145.91,35.5]
[1749846658641,0.04546699,145.93,145.88,42.37686785]
[1749846658838,6.8508,145.9,145.88,49.22836785]
[1749846659038,6.8508,145.9,145.88,35.5]
[1749846659438,6.8505,145.91,145.88,35.5]
[1749846660444,0.04948402,145.92,145.88,35.5]
[1749846661146,6.8512,145.9,145.88,35.5]
[1749846661536,6.8512,145.89,145.88,35.5]
[1749846662242,6.852,145.88,145.86,6.87686785]
[1749846662444,6.90010189,145.88,145.86,6.87686785]
[1749846662644,1.89e-06,145.88,145.86,6.87686785]
[1749846662844,6.87686785,146.0,145.87,6.87686785]
[1749846663043,9.07406785,146.0,145.94,6.87686785]
[1749846663240,6.848,145.96,145.94,6.87686785]
[1749846663947,6.89725878,145.96,145.94,6.92496974]
[1749846664350,0.04925878,145.96,145.94,6.92496974]
[1749846664540,0.04925878,145.96,145.94,6.91897213]
[1749846664942,0.04925878,145.96,145.94,13.76767213]
[1749846665340,0.04925878,145.96,145.94,6.91897213]
[1749846665541,0.04925878,145.96,145.95,6.8484]
[1749846666353,37.81,146.01,145.97,6.8471]
[1749846666354,2.31,146.01,145.97,6.8471]
[1749846666652,6.8468,145.99,145.96,6.87087024]
[1749846666853,2.31,146.01,145.96,13.71837024]
[1749846667152,2.31,146.01,145.94,6.87087024]
[1749846667153,6.8477,145.97,145.94,6.87087024]
[1749846667351,6.89601226,145.97,145.94,13.76695616]
[1749846669155,0.04831226,145.97,145.95,6.8484]
[1749846670047,6.89581226,145.97,145.94,13.76705616]
[1749846670953,0.04831226,145.97,145.94,6.91835616]
[1749846671159,0.04831226,145.97,145.96,6.87087024]
[1749846671454,0.04831226,145.97,145.96,13.71877024]
[1749846677758,0.04831226,145.97,145.96,6.87087024]
[1749846678553,0.04831226,145.97,145.96,13.71877024]
[1749846679460,0.04831226,145.97,145.95,6.8484]
[1749846681267,6.89581226,145.97,145.95,6.8484]
[1749846681463,0.04831226,145.97,145.96,6.8479]
[1749846681759,0.04831226,145.97,145.96,13.71877024]
[1749846684960,6.33617188,146.05,145.96,6.87087024]
[1749846685160,5.81822612,146.04,146.0,6.87087024]
[1749846685471,6.844,146.05,146.01,35.46]
[1749846685658,5.81649462,146.04,146.01,35.46]
[1749846685854,2.2047,146.06,146.01,35.46]
[1749846686054,6.89384209,146.04,146.01,35.5037609]
[1749846686260,0.04934209,146.04,146.01,0.0437609]
[1749846686560,6.8451,146.02,146.01,0.0437609]
[1749846687360,12.66627871,146.02,146.01,0.0437609]
[1749846688061,6.8448,146.03,146.01,0.0437609]
[1749846688266,0.04934209,146.04,146.01,0.0437609]
[1749846688671,6.8449,146.03,146.01,0.0437609]
[1749846691273,6.8451,146.02,146.01,0.0437609]
[1749846692472,6.8449,146.03,146.01,0.0437609]
[1749846693072,6.8451,146.02,146.01,0.0437609]
[1749846695577,6.8449,146.03,146.01,0.0437609]
[1749846695775,0.04934209,146.04,146.01,0.0437609]
[1749846696273,6.8451,146.02,146.01,0.0437609]
[1749846696466,6.8451,146.02,145.98,42.32613828]
[1749846696467,6.86613828,146.02,145.95,42.30613828]
[1749846696663,2.229,146.01,145.95,42.30613828]
[1749846696878,6.8471,145.98,145.95,49.15423828]
[1749846697172,2.229,146.01,145.95,49.15423828]
[1749846697476,0.04613091,145.99,145.97,0.04827624]
[1749846698376,6.847,145.98,145.97,0.04827624]
[1749846706384,0.04613091,145.99,145.97,0.04827624]
[1749846706680,0.04613091,145.99,145.97,6.91441452]
[1749846706885,5.82443883,146.06,145.97,6.91441452]
[1749846707081,6.8445,146.04,146.01,13.71143828]
[1749846707276,6.8445,146.04,146.01,49.13143828]
[1749846707882,0.04945972,146.04,146.02,6.845]
[1749846709775,6.89365972,146.04,146.02,6.845]
[1749846711685,6.89365972,146.04,146.01,49.17932249]
[1749846711985,0.04945972,146.04,146.01,42.33392249]
[1749846712183,0.04945972,146.04,146.03,6.86613828]
[1749846712580,0.04945972,146.04,146.03,13.71083828]
[1749846714585,0.04945972,146.04,146.03,13.70688545]
[1749846714978,2.2928,146.11,146.06,6.8428]
[1749846715187,2.2928,146.11,146.06,6.86218545]
[1749846715188,5.84543286,146.1,146.06,6.86218545]
[1749846715386,5.84543286,146.09,146.06,6.86218545]
[1749846715577,2.2928,146.11,146.06,6.86218545]
[1749846715774,5.8457547,146.1,146.06,6.86218545]
[1749846715978,5.89491043,146.09,146.07,0.04606966]
[1749846716179,0.04915573,146.09,146.07,0.04606966]
[1749846716582,0.04915573,146.09,146.08,6.8423]
[1749846717979,0.04915573,146.09,146.08,13.70448545]
[1749846721389,5.573e-05,146.09,146.08,13.70448545]
[1749846721592,2.3429,146.17,146.14,6.8394]
[1749846721786,6.8388,146.16,146.14,42.26218545]
[1749846721982,6.8388,146.16,146.14,35.4]
[1749846722591,6.88343257,146.16,146.14,35.44468265]
[1749846722786,0.04463257,146.16,146.14,35.44468265]
[1749846722991,0.04463257,146.16,146.14,42.3068681]
[1749846723289,599.0,146.4,146.14,42.3068681]
[1749846723290,2.3261,146.22,146.14,42.3068681]
[1749846723591,2.3261,146.22,146.19,6.86218545]
[1749846723793,2.3261,146.22,146.19,42.24218545]
[1749846723992,2.1861,146.24,146.19,42.24218545]
[1749846724181,8.49232857,146.3,146.21,6.86218545]
[1749846724182,2.3261,146.27,146.21,6.86218545]
[1749846724494,0.04529933,146.23,146.22,6.8358]
[1749846724696,2.73902298,146.28,146.22,35.38]
[1749846725498,2.73902298,146.28,146.2,35.38]
[1749846725499,7.24052416,146.27,146.2,35.38]
[1749846725682,6.8362,146.21,146.2,35.38]
[1749846725993,0.04426996,146.22,146.19,0.04909301]
[1749846726196,6.837,146.2,146.19,0.04909301]
[1749846728699,6.8364,146.21,146.19,0.04909301]
[1749846729201,0.04426996,146.22,146.19,0.04909301]
[1749846729402,6.8362,146.21,146.19,0.04909301]
[1749846729596,0.04426996,146.22,146.19,0.04909301]
[1749846730306,11.74189328,146.2,146.13,35.32]
[1749846730500,37.5038,146.23,146.11,35.32]
[1749846730501,11.74189328,146.16,146.11,35.32]
[1749846730804,6.8399,146.14,146.1,42.1614]
[1749846731196,0.04791277,146.13,146.11,0.05012075]
[1749846733400,0.04791277,146.13,146.12,6.8404]
[1749846733598,0.04791277,146.13,146.11,0.05012075]
[1749846734596,0.04791277,146.13,146.11,11.80124057]
[1749846734905,0.04791277,146.13,146.12,6.8404]
[1749846735403,0.04791277,146.13,146.11,18.64194057]
[1749846735705,0.04791277,146.13,146.11,11.80124057]
[1749846736702,0.04791277,146.13,146.12,6.8404]
[1749846742311,2.2353,146.23,146.12,6.84]
[1749846742609,2.2353,146.23,146.18,11.75111982]
[1749846742802,2.2353,146.23,146.2,6.8367]
[1749846743202,2.27879247,146.23,146.2,6.88098091]
[1749846743406,2.27879247,146.23,146.2,0.04428091]
[1749846743799,6.8362,146.21,146.2,0.04428091]
[1749846745504,6.8378,146.18,146.16,35.32]
[1749846746108,6.8381,146.17,146.16,35.32]
[1749846746314,11.75111982,146.2,146.14,393.88]
[1749846746508,6.89013125,146.18,146.16,0.04618257]
[1749846747415,0.05233125,146.18,146.16,0.04618257]
[1749846749011,6.88993125,146.18,146.16,0.04618257]
[1749846749814,0.05233125,146.18,146.16,6.88478257]
[1749846750017,0.05233125,146.18,146.16,0.04618257]
[1749846750515,6.89003125,146.18,146.16,0.04618257]
[1749846751707,6.89003125,146.18,146.16,6.88468257]
[1749846751904,0.05233125,146.18,146.16,0.04618257]
[1749846752209,0.05233125,146.18,146.17,6.8381]
[1749846752816,0.05233125,146.18,146.17,53.90921982]
[1749846755322,0.05233125,146.18,146.16,0.04618257]
[1749846755819,6.8381,146.17,146.16,0.04618257]
[1749846756019,0.05233125,146.18,146.16,0.04618257]
[1749846757920,5.87968941,146.17,146.16,0.04618257]
[1749846758119,0.05233125,146.18,146.16,0.04618257]
[1749846758515,5.88449943,146.17,146.16,0.04618257]
[1749846759429,12.72259943,146.17,146.16,0.04618257]
[1749846760417,12.72259943,146.17,146.08,5.9695]
[1749846760418,5.88449943,146.17,146.11,35.28]
[1749846760621,17.63561925,146.16,146.11,35.28]
[1749846760917,5.88449943,146.15,146.13,6.8397]
[1749846761122,53.3672917,146.18,146.11,35.28]
[1749846761318,0.04759998,146.16,146.13,0.05177019]
[1749846761519,5.89173068,146.15,146.13,0.05177019]
[1749846761815,5.89173068,146.14,146.11,35.28]
[1749846762021,12.73203068,146.13,146.11,35.28]
[1749846762217,6.8403,146.13,146.11,35.28]
[1749846762818,6.8403,146.13,146.11,35.32698999]
[1749846763015,6.8404,146.12,146.11,35.32698999]
[1749846763213,6.8404,146.12,146.11,0.04698999]
[1749846763414,17.63824611,146.12,146.08,35.28]
[1749846763615,6.8418,146.09,146.08,35.28]
[1749846763820,6.8418,146.09,146.05,35.28]
[1749846764120,6.8418,146.09,146.06,6.8431]
[1749846764525,6.88676891,146.09,146.06,6.89351154]
[1749846764924,6.8423,146.08,146.06,0.05041154]
[1749846765325,0.04496891,146.09,146.06,0.05041154]
[1749846765532,6.88696891,146.09,146.06,6.89331154]
[1749846765923,0.04496891,146.09,146.06,0.05041154]
[1749846766725,17.62959636,146.08,146.02,35.3]
[1749846767030,11.75111982,146.08,146.02,35.3]
[1749846767330,6.8442,146.04,146.02,35.3]
[1749846767726,6.89538544,146.04,146.02,35.34432708]
[1749846767927,6.8446,146.03,146.02,35.34432708]
[1749846768129,0.05118544,146.04,146.02,35.34432708]
[1749846768428,6.8446,146.03,146.02,0.04432708]
[1749846769230,0.05118544,146.04,146.02,0.04432708]
[1749846770930,0.05118544,146.04,146.02,6.88922708]
[1749846771327,0.05118544,146.04,146.02,0.04432708]
[1749846771528,0.05118544,146.04,145.99,35.3]
[1749846771839,11.75111982,146.03,145.96,35.3]
[1749846772030,0.05118544,146.04,145.96,35.3]
[1749846772031,11.75111982,146.01,145.96,35.3]
[1749846772431,6.8462,146.0,145.97,6.8474]
[1749846772633,6.89722736,146.0,145.97,0.0453336]
[1749846774844,6.8467,145.99,145.97,0.0453336]
[1749846775844,2.41162736,146.0,145.97,0.0453336]
[1749846776139,11.75111982,145.99,145.97,0.0453336]
[1749846776445,6.847,145.98,145.97,0.0453336]
[1749846777042,6.8467,145.99,145.97,0.0453336]
[1749846777241,4.63912736,146.0,145.97,0.0453336]
[1749846778342,6.847,145.98,145.97,0.0453336]
[1749846782348,18.59781982,145.99,145.97,0.0453336]
[1749846782555,4.63912736,146.0,145.97,0.0453336]
[1749846782953,6.847,145.98,145.97,0.0453336]
[1749846783555,4.63912736,146.0,145.97,0.0453336]
[1749846783852,0.05102736,146.0,145.97,0.0453336]
[1749846784250,0.05102736,146.0,145.98,6.8467]
[1749846785360,0.05102736,146.0,145.97,0.0453336]